Cogmind - Beta 15 @@@ ROGUE MODE // 2025.09.14 @ 18:21:15 Player: jydah Result: Destroyed by S-10 Pest with Light Assault Rifle Performance ------------- Evolutions (0) 0 Regions Visited (1) 200 Robots Destroyed (7) 35 Value Destroyed (163) 163 Prototype IDs (0) 0 Alien Tech Used (0) 0 Bonus (0) 0 TOTAL SCORE: 398 Bonus ------- None Cogmind --------- Core Integrity 0/250 Matter 242/300 Energy 80/250 System Corruption 0% Temperature Cool (0) Movement Walking (260) Ox2 Location -10/Materials Parts ------- > --- POWER (1) -------- Ion Engine > --- PROPULSION (2) --- Aluminum Leg > --- UTILITY (2) ------ Large Storage Unit > --- WEAPON (2) ------- Medium Laser > --- INVENTORY (15) --- Light Ion Engine Light Nuclear Core Light Treads Light Treads Small Storage Unit Medium Storage Unit Small Laser Peak State ------------ > --- POWER ------------ Ion Engine > --- PROPULSION ------- Aluminum Leg Aluminum Leg > --- UTILITY ---------- Small Storage Unit Medium Storage Unit > --- WEAPON ----------- Medium Laser Assault Rifle > --- INVENTORY -------- Light Ion Engine Light Treads Light Treads Small Laser Grenade Launcher [Rating: 7] Favorites ----------- Power Light Ion Engine Engine Light Ion Engine Propulsion Aluminum Leg Treads Light Treads Leg Aluminum Leg Utility Large Storage Unit Storage Large Storage Unit Weapon Assault Rifle Energy Gun Medium Laser Ballistic Gun Assault Rifle Launcher Grenade Launcher Build | -11 -10 ------- Run | Yrd Mat Slots Evolved . | . . Power . | . . Propulsion . | . . Utility . | . . Weapon . | . . Parts Attached 12 | 6 6 Power 2 | 1 1 Engine 2 | 1 1 Core . | . . Reactor . | . . Propulsion 4 | 2 2 Treads 2 | . 2 Leg 2 | 2 . Wheel . | . . Hover . | . . Flight . | . . Utility 3 | 1 2 Device . | . . Storage 3 | 1 2 Processor . | . . Hackware . | . . Protection . | . . Artifact . | . . Weapon 3 | 2 1 Energy Gun 1 | 1 . Energy Cannon . | . . Ballistic Gun 1 | 1 . Ballistic Cannon . | . . Launcher 1 | . 1 Special Weapon . | . . Impact Weapon . | . . Slashing Weapon . | . . Piercing Weapon . | . . Special Melee Weapon . | . . Unidentified Prototypes . | . . Parts Lost 4 | . 4 Power 1 | . 1 Propulsion 1 | . 1 Utility . | . . Weapon 2 | . 2 Highest Loss Streak 4 | . 4 To Critical Strikes . | . . Average Backups 6 | 3 7 Power 1 | . 1 Propulsion 1 | . 2 Utility 1 | . 1 Weapon 1 | 1 1 Tool/Special . | . . Unused Backups 3 | . 3 Power 2 | . 2 Propulsion . | . . Utility . | . . Weapon 1 | . 1 Tool/Special . | . . Average Slot Usage (%) 86 | . 86 Engine 14 | . 14 Treads 4 | . 4 Leg 22 | . 22 Storage 17 | . 17 Energy Gun 11 | . 11 Ballistic Gun 13 | . 13 Launcher 2 | . 2 Peak Build Rating 7 | 6 7 Average Rating 6 | 3 6 On Entrance 3 | . 6 Naked Turns . | . . Heaviest Build 40 | 14 40 Greatest Support 40 | 20 40 Greatest Overweight (x) 2 | 1 2 Average Overweight (x) . | . . Largest Inventory Capacity 15 | 8 15 Average Capacity 13 | 6 14 Most Carried 9 | 5 9 Average Carried 6 | 3 7 Final Capacity 15 | 8 15 Final Carried 7 | 4 7 Class Distribution -------------------- 100% | Mutant Dominant Class ---------------- Mutant | -10/Materials Resources | -11 -10 ----------- Run | Yrd Mat Matter Collected 441 | 254 187 Remotely . | . . Salvage Created 239 | . 239 Parts 11 | . 11 Haulers Intercepted . | . . Recyclers Shooed . | . . Parts Field Recycled . | . . Retrieved Matter . | . . Parts Self-Destructed . | . . Prevented . | . . Kills | -11 -10 ------- Run | Yrd Mat Combat Hostiles Destroyed 4 | . 4 Guns 2 | . 2 AOE 2 | . 2 Classes Destroyed 4 | . 4 Recycler 1 | . 1 Watcher 2 | . 2 Swarmer 1 | . 1 Grunt 3 | . 3 Best Kill Streak 1 | . 1 Combat Bots Only 1 | . 1 Max Kills in Single Turn 1 | . 1 Gunslinging . | . . Exploded 1 | . 1 Melee . | . . Uniques/NPCs Destroyed . | . . Combat | -11 -10 -------- Run | Yrd Mat Hostile Shots Fired 78 | . 78 Missed 21 | . 21 Hits 57 | . 57 Projectile 57 | . 57 AOE 1 | . 1 Damage Taken 751 | . 751 Core 257 | . 257 Absorbed by Shields . | . . Regen/Repaired (Parts) 62 | . 62 Core Remaining (%) 100 | 100 . Volleys Fired 23 | . 23 Largest 2 | . 2 Hottest 70 | . 70 Shots Fired 46 | . 46 Gun 43 | . 43 Cannon . | . . Launcher 3 | . 3 Special . | . . Kinetic 23 | . 23 Thermal 20 | . 20 Explosive 3 | . 3 Electromagnetic . | . . Robot Hit Streak 8 | . 8 Robot Miss Streak 2 | . 2 Penetration Max . | . . Secondary Targets . | . . Shots Hit Robots 30 | . 30 Core Hits 13 | . 13 Critical Kills . | . . Critical Parts Destroyed . | . . Critical Strikes 2 | . 2 Burn 2 | . 2 Melee Attacks . | . . Impact . | . . Slashing . | . . Piercing . | . . Sneak Attacks . | . . Combat Hostiles . | . . Follow-up Attacks . | . . Damage Inflicted 502 | . 502 Guns 342 | . 342 Cannons . | . . Explosions 150 | . 150 Melee . | . . Ramming 10 | . 10 Kinetic 168 | . 168 Thermal 174 | . 174 Explosive 150 | . 150 Electromagnetic . | . . Impact . | . . Slashing . | . . Piercing . | . . Highest Corruption . | . . Average Corruption . | . . Corruption Purged . | . . Corruption Blocked . | . . Overload Shots . | . . Overflow Damage 4 | . 4 Projectiles . | . . Explosions 4 | . 4 Melee . | . . Knockbacks . | . . Impact . | . . Kinetic . | . . Secondary . | . . Self-Inflicted Damage 39 | . 39 Shots 1 | . 1 Rammed . | . . Targets Rammed 1 | . 1 Kicked 1 | . 1 Crushed . | . . Highest Temperature 288 | . 288 Average Temperature 115 | . 115 Received Heat Transfer 231 | . 231 Effects 1 | . 1 Energy Bleed 1 | . 1 Siege Activations . | . . Martial Activations . | . . Shielding Activations . | . . Robots Disrupted . | . . Combat Hostiles . | . . Robots Corrupted . | . . Combat Hostiles . | . . Parts Fried . | . . Impact Corruptions . | . . Robots Melted . | . . Combat Hostiles . | . . Parts Melted 4 | . 4 Heat Transferred 666 | . 666 Parts Sabotaged . | . . Parts Stolen . | . . Parts Stripped . | . . Power Chain Reactions . | . . Alert | -11 -10 ------- Run | Yrd Mat Maximum Alert Level . | . . Low Security (%) 100 | 100 100 Level 1 . | . . Level 2 . | . . Level 3 . | . . Level 4 . | . . Level 5 . | . . High Security . | . . Max Security . | . . Peak Influence 40 | . 40 Initial . | . . Average 5 | . 6 Influence Increases 143 | . 143 Destroy 0b10 Robot/C 80 | . 80 Destroy 0b10 Robot/NC 15 | . 15 Destroy Leader 14 | . 14 Successful Hack 2 | . 2 Destroy Structure 17 | . 17 Lose Combat Pursuer 15 | . 15 Influence Decreases 128 | . 128 Time Decay 88 | . 88 Lost Part 40 | . 40 Squads Dispatched . | . . Investigation . | . . Extermination . | . . Reinforcement . | . . Assault . | . . Garrison . | . . Intercept . | . . Searches Triggered . | . . Construction Impeded . | . . Haulers Reinforced . | . . Active Scanning Responses . | . . Cargo Convoy Interrupts . | . . Stealth | -11 -10 --------- Run | Yrd Mat Distress Signals 1 | . 1 Communications Jammed . | . . Distress Signals . | . . Times Spotted 14 | . 14 Peak Tracking Total 3 | . 3 Tactical Retreats 1 | . 1 Traps | -11 -10 ------- Run | Yrd Mat Traps Triggered . | . . Indirectly . | . . Trap Hack Attempts . | . . Triggered . | . . Disarmed . | . . Reprogrammed . | . . Reused . | . . Traps Extracted . | . . Installed . | . . Triggered . | . . Machines | -11 -10 ---------- Run | Yrd Mat Machines Disabled . | . . Max in Single Turn . | . . Machines Repaired . | . . Machines Dismantled . | . . Machines Sabotaged . | . . Overloaded Fab Kills . | . . Hacking | -11 -10 --------- Run | Yrd Mat Machines Accessed 2 | . 2 Terminals 1 | . 1 Fabricators . | . . Repair Stations 1 | . 1 Recycling Units . | . . Scanalyzers . | . . Garrison Access . | . . Total Hacks 7 | . 7 Successful 4 | . 4 Failed 3 | . 3 Catastrophic . | . . Database Lockouts . | . . Manual 3 | . 3 Terminals 2 | . 2 Fabricators . | . . Repair Stations 5 | . 5 Recycling Units . | . . Scanalyzers . | . . Garrison Access . | . . Terminal Hacks . | . . Fabricator Hacks . | . . Repair Station Hacks 4 | . 4 Scan Component 3 | . 3 Repair 1 | . 1 Recycling Unit Hacks . | . . Scanalyzer . | . . Garrison Access Hacks . | . . Unauthorized Hacks . | . . Terminals . | . . Fabricators . | . . Repair Stations . | . . Recycling Units . | . . Scanalyzers . | . . Garrison Access . | . . Data Cores Recovered . | . . Used . | . . Hacking Detections 2 | . 2 Full Trace Events 1 | . 1 Feedback Events . | . . Feedback Blocked . | . . Robot Schematics Acquired . | . . Robots Built . | . . Authchips . | . . Time . | . . Total Robot Build Rating . | . . Part Schematics Acquired . | . . Parts Built . | . . Authchips . | . . Time . | . . Total Part Build Rating . | . . Parts Repaired 1 | . 1 Time 26 | . 26 Parts Recycled . | . . Recycled Matter . | . . Retrieved Matter . | . . Retrieved Components . | . . Parts Scanalyzed . | . . Part Schematics Acquired . | . . Parts Damaged . | . . Bothacking | -11 -10 ------------ Run | Yrd Mat Used RIF Installer . | . . Robots Hacked . | . . Non-combat . | . . Combat . | . . Robot Hacks Applied . | . . Relay Couplers Released . | . . Fabnet Peak Effective % . | . . Robots Rewired . | . . Allies Hacked . | . . Hacks Repelled . | . . Allies | -11 -10 -------- Run | Yrd Mat Total Allies . | . . Largest Group . | . . Highest-Rated Group . | . . Highest-Rated Ally . | . . Total Orders . | . . Ally Attacks . | . . Total Damage . | . . Kills . | . . Allies Corrupted . | . . Allies Melted . | . . Intel | -11 -10 ------- Run | Yrd Mat Active Infowar (turns) . | . . Robot Analysis Total . | . . Derelict Logs Recovered . | . . Drone Launches . | . . Drone Recoveries . | . . Exploration | -11 -10 ------------- Run | Yrd Mat Turns Passed 641 | 77 564 Spaces Moved 273 | 57 216 Core 10 | 10 . Treads 26 | . 26 Legs 237 | 47 190 Wheels . | . . Hover . | . . Flight . | . . Fastest Speed 50 | 50 120 Average Speed 158 | 111 170 Slowest Speed 260 | 120 260 Overloaded Moves . | . . Propulsion Burnouts . | . . Robots Hopped . | . . Potential Cave-ins . | . . Cave-ins Triggered . | . . Exploration Rate (%) 12 | 3 22 Regions Visited 1 Branch Regions . Pre-discovered Areas . | . . Known Exits Taken . | . . Unknown Exits Taken 1 | 1 . Scrap Searched . | . . Spaces Dug . | . . Terrain Destroyed 19 | . 19 Melee . | . . Projectile . | . . AOE 19 | . 19 Terrain Rammed . | . . Walls Destroyed . | . . Machines Disabled . | . . Actions | -11 -10 --------- Run | Yrd Mat Total 428 | 69 359 Wait 96 | . 96 Move 272 | 56 216 Hop . | . . Pick Up 12 | 7 5 Fast Attach 4 | 3 1 Attach 7 | 3 4 Detach 2 | . 2 Swap 11 | . 11 Drop . | . . Fire 23 | . 23 Melee . | . . Ram . | . . Kick 1 | . 1 Crush . | . . Escape Stasis . | . . Rewire . | . . Trap . | . . Miscellaneous . | . . Route ------- -11/Scrapyard -10/Materials History --------- Turn | Location | Event 16 | -11/Scrapyard | Discovered new exit (range 16) 78 | -11/Scrapyard | Entered Materials 307 | -10/Materials | Build established: Mutant 429 | -10/Materials | Repaired Aluminum Leg 601 | -10/Materials | Core integrity fell below 50% 605 | -10/Materials | Core integrity fell below 20% 642 | -10/Materials | Destroyed by S-10 Pest with Light Assault Rifle Last Messages --------------- 00607_ K-01 Serf collects debris. 00609_ U-05 Engineer builds a Wall. 00611_ K-01 Serf collects debris. 00613_ U-05 Engineer builds a Wall. 00614_ K-01 Serf collects debris. 00618_ U-05 Engineer builds a Wall. 00621_ K-01 Serf collects debris. 00624_ Aluminum Leg destroyed. 00630_ U-05 Engineer lays Concrete. 00637_ Destroyed Flight Unit. 00637_ Assault Rifle destroyed. 00637_ Destroyed Assault Rifle. 00637_ S-10 Pest destroyed. 00638_ Grenade Launcher destroyed. 00640_ Lgt. Ion Engine destroyed. [Achievement: First Step to Greatness] The achievement interface (ESC then open Records) offers an effective way to explore all of your earned achievements as well as seek out new goals for future runs. Map ----- +----------------------------------------------------+ | ?????????????????????????? +????????????????????? | | ?????????????????????????? #? ?????????????????? | | ?????????????????????????? #? ?????????????????? | | ??????????????????????????# # ?????????????????? | | ??????????????????????????# # ??????????????????? | | ???????????????????????#### #??????????????????? | | ??????????????????????? # #??????????????????? | | ??????????????????????## [ #??????????????????? | | ??????????????????????# % ############???????? | | ?????????????????????## * #???????? | | ?????????????????????# =% #???????? | | ???????????????#????## = ! #???????? | | ?????????# ???# ??## %= ######### #???????? | | ?????????# ### # % ###???????? #???????? | | ?????????# # = #?????????????????? | | ??????????# # #?????????????????? | | ??????????# "T" # #?????????????????? | | ??????????# # #?????????????????? | | ??????????# / [=" #?????????????????? | | ??????????# # " #?????????????????? | | ??????????# | # """ #?????????????????? | | ??????????# ###+#########?????????????????? | | ??????????# ^ s # #???????????????????? | | ??????????# ^ #???????????????????? | | ??????????# """ * % #???????????????????? | | ??????????# ^ """"" @ #???????????????????? | | ???????#### """"" s #???????????????????? | | ????????""" """"" #???????????????????? | | ????????"T """ #???????????????????? | | ????????""" # #???????????????????? | | ??????????# # #???????????????????? | | ??????????# ######???????????????????? | | ???????#### #????????????????????????? | | ??????##! #????????????????????????? | | ??????# #????????????????????????? | | ??????# ##+#####+## #????????????????????????? | | ??????#! # # #????????????????????????? | | ??????#! # # ###??????????????????????? | | ??????##! # # T#??????????????????????? | | ???????#### """ """ # ""#??????????????????????? | | ??????????# """ """ # ###??????????????????????? | | ??????????# """ """ # #????????????????????????? | | ??????????# #####????????????????????????? | | ??????????# #????????????????????????????? | | ??????????###########????????????????????????????? | | ?????????????????????????????????????????????????? | | ?????????????????????????????????????????????????? | | ?????????????????????????????????????????????????? | | ?????????????????????????????????????????????????? | | | +----------------------------------------------------+ Best States ------------- Heat Dissipation 25 Energy Generation 10 Energy Capacity 250 Matter Stores 300 Matter Capacity 300 Sight Range 16 Terrain Scan Density 10 Evasion (%) 55 Recoil Reduction 2 Item Schematics ----------------- None Robot Schematics ------------------ None Fabricated ------------ Nothing Repaired ---------- Aluminum Leg | 31% | -10/Materials Alien Tech Used ----------------- None Achievements -------------- First Step to Greatness Challenges ------------ None Game ------ Seed MagneticStealthPendant Manual? 0 Play Time 00:23:18 Cumulative 0.3 hours Start 2025.09.14 @ 17:56:03 End 2025.09.14 @ 18:21:15 Sessions 1 Manual Loads 0 Difficulty Rogue Special Mode None Game No. 1 Rogue 1 Adventurer 0 Explorer 0 Win Type - Total 0 Types 0/0/0/0/0/0/0/0/0/0 Lore% 0 Gallery% 3 Achievement% 5 Wizard Run 0 Options --------- Layout 2 ASCII 1 Keyboard 1 Movement Arrows Keybinds 0 Fullscreen 1 Font 24/Smallcaps Map View 50x44 Zoom Use 0% Tactical HUD 1 Map Filters NONE Filters NONE Steam 1 RUN: 80130410-406e-4fca-9c67-8b63d1e5d124